Cogmind - Beta 17 @@@ ROGUE MODE // 2026.07.01 @ 15:10:25 Player: Lolterzard Result: Destroyed by G-67 Veteran with Field Laser Performance ------------- Evolutions (6) 3000 Regions Visited (6) 1200 Robots Destroyed (37) 185 Value Destroyed (933) 933 Prototype IDs (6) 120 Alien Tech Used (0) 0 Bonus (782) 782 TOTAL SCORE: 6220 Bonus ------- Follower Combat Kills 85 Registered with UFD 300 Met Optimus in HQ 500 Friendly Fire -103 Cogmind --------- Core Integrity 0/1150 Matter 86/300 Energy 100/100 System Corruption 0% Temperature Cool (9) Movement Core (50) Location -4/Factory Parts ------- > --- POWER (2) -------- (None) > --- PROPULSION (9) --- (None) > --- UTILITY (4) ------ Power Shielding > --- WEAPON (4) ------- (None) > --- INVENTORY (5) ---- Advanced Cooling System Peak State ------------ > --- POWER ------------ Antimatter Reactor > --- PROPULSION ------- Field Propulsion Array Field Propulsion Array Field Propulsion Array > --- UTILITY ---------- (None) > --- WEAPON ----------- Heavy Phase Cannon > --- INVENTORY -------- Advanced Cooling System Power Shielding Focal Shield [Rating: 56] Favorites ----------- Power Ion Engine Engine Ion Engine Power Core Light Nuclear Core Reactor Antimatter Reactor Propulsion Hover Unit Treads Light Treads Hover Unit Hover Unit Flight Unit Field Propulsion Array Utility Seismic Detector Device Seismic Detector Storage Medium Storage Unit Protection Power Shielding Weapon Light Cannon Energy Gun Small Laser Energy Cannon Heavy Phase Cannon Ballistic Gun Assault Rifle Ballistic Cannon Light Cannon Launcher Rocket Launcher Build | -11 -10 -10 -10 -7 -5 -4 ------- Run | Yrd Mat Min Sub Scr Fac Fac Slots Evolved 12 | . . . . . 10 2 Power 1 | . . . . . 1 . Propulsion 7 | . . . . . 6 1 Utility 2 | . . . . . 2 . Weapon 2 | . . . . . 1 1 Parts Attached 32 | 7 4 1 1 . 7 12 Power 4 | 1 . . . . 1 2 Engine 2 | 1 . . . . 1 . Core 1 | . . . . . . 1 Reactor 1 | . . . . . . 1 Propulsion 9 | 2 2 . . . . 5 Treads 2 | 2 . . . . . . Leg . | . . . . . . . Wheel . | . . . . . . . Hover 4 | . 2 . . . . 2 Flight 3 | . . . . . . 3 Utility 6 | 2 1 . . . 1 2 Device 2 | 1 . . . . . 1 Storage 2 | 1 1 . . . . . Processor . | . . . . . . . Hackware . | . . . . . . . Protection 2 | . . . . . 1 1 Artifact . | . . . . . . . Weapon 13 | 2 1 1 1 . 5 3 Energy Gun 1 | 1 . . . . . . Energy Cannon 1 | . . . . . . 1 Ballistic Gun 2 | 1 . . . . 1 . Ballistic Cannon 8 | . 1 1 . . 4 2 Launcher 1 | . . . 1 . . . Special Weapon . | . . . . . . . Impact Weapon . | . . . . . . . Slashing Weapon . | . . . . . . . Piercing Weapon . | . . . . . . . Special Melee Weapon . | . . . . . . . Unidentified Prototypes . | . . . . . . . Parts Lost 24 | . . 1 . . 11 12 Power 4 | . . . . . 2 2 Propulsion 6 | . . 1 . . 1 4 Utility 3 | . . . . . 1 2 Weapon 11 | . . . . . 7 4 Highest Loss Streak 8 | . . 1 . . 8 6 To Critical Strikes . | . . . . . . . Average Backups 7 | 1 4 9 9 9 8 3 Power . | . 1 1 1 1 . . Propulsion . | . . . . . . . Utility 2 | . . 3 3 3 3 2 Weapon 4 | . 2 5 5 5 4 . Tool/Special . | . . . . . . . Unused Backups 4 | . 2 1 . . . 1 Power 1 | . 1 . . . . . Propulsion . | . . . . . . . Utility 1 | . . . . . . 1 Weapon 2 | . 1 1 . . . . Tool/Special . | . . . . . . . Average Slot Usage (%) 73 | . 100 97 85 85 28 15 Engine 11 | . 14 14 14 14 5 . Treads 2 | . 18 . . . . . Hover 11 | . 9 26 14 14 . 2 Device 11 | . 14 14 14 14 4 . Storage 11 | . 14 14 14 14 4 3 Energy Gun 1 | . 7 . . . . . Ballistic Gun 2 | . 14 . . . . 1 Ballistic Cannon 14 | . 6 28 20 14 10 1 Launcher 5 | . . . 7 14 . . Peak Build Rating 56 | 7 7 8 8 8 9 56 Average Rating 8 | 5 6 7 7 7 5 20 On Entrance 5 | . 7 7 7 8 7 1 Avg Prop Armor Cover (%) 13 | . 11 . . . . 13 Naked Turns 27 | . . . . . 27 . Heaviest Build 30 | 14 21 22 23 23 30 26 Greatest Support 40 | 40 40 12 6 6 6 30 Greatest Overweight (x) 7 | 2 3 3 3 3 7 4 Average Overweight (x) 1 | . . 1 3 3 4 . Largest Inventory Capacity 10 | 8 10 10 10 10 10 8 Average Capacity 9 | 7 9 10 10 10 9 6 Most Carried 10 | 2 9 10 10 10 10 5 Average Carried 7 | 1 4 9 9 9 8 3 Final Capacity 10 | 8 10 10 10 10 5 5 Final Carried 10 | 2 9 10 10 9 5 1 Class Distribution -------------------- 98% | Mutant Dominant Class ---------------- Mutant | -10/Materials Mutant | -10/Mines Mutant | -10/Subcaves Mutant | -7/Scraptown Mutant | -5/Factory Mutant | -4/Factory Resources | -11 -10 -10 -10 -7 -5 -4 ----------- Run | Yrd Mat Min Sub Scr Fac Fac Matter Collected 1126 | 294 111 184 64 101 59 313 Remotely . | . . . . . . . Salvage Created 1007 | 103 170 215 121 . 70 328 Parts 54 | 4 10 13 6 . 2 19 Haulers Intercepted 2 | . 1 . . . . 1 Recyclers Shooed . | . . . . . . . Parts Field Recycled . | . . . . . . . Retrieved Matter . | . . . . . . . Parts Self-Destructed 2 | . . . 2 . . . Prevented . | . . . . . . . Parts Restored . | . . . . . . . Kills | -11 -10 -10 -10 -7 -5 -4 ------- Run | Yrd Mat Min Sub Scr Fac Fac Combat Hostiles Destroyed 24 | . 2 5 5 . 2 10 Guns 3 | . . . . . 1 2 Cannons 17 | . 2 5 1 . 1 8 AOE 4 | . . . 4 . . . Classes Destroyed 12 | 2 5 1 2 . 1 1 Worker 6 | . 1 2 . . 1 2 Builder 1 | . . 1 . . . . Tunneler 1 | 1 . . . . . . Hauler 2 | . 1 . . . . 1 Recycler 1 | 1 . . . . . . Operator 1 | . 1 . . . . . Watcher 1 | . 1 . . . . . Swarmer 10 | . . . . . . 10 Grunt 8 | . 2 5 . . 1 . Hunter 1 | . . . . . 1 . Artisan 1 | . . . 1 . . . Subdweller 5 | . . . 5 . . . Best Kill Streak 3 | 1 2 2 2 . 2 3 Combat Bots Only 3 | . 2 2 2 . 1 3 Max Kills in Single Turn 2 | 1 1 2 1 . 1 1 Gunslinging . | . . . . . . . Exploded 1 | . . . 1 . . . Melee . | . . . . . . . Uniques/NPCs Destroyed . | . . . . . . . Combat | -11 -10 -10 -10 -7 -5 -4 -------- Run | Yrd Mat Min Sub Scr Fac Fac Hostile Shots Fired 428 | . 7 12 13 . 117 279 Missed 144 | . 3 3 5 . 29 104 Hits 284 | . 4 9 8 . 88 175 Projectile 284 | . 4 9 8 . 88 175 Critical Strikes 7 | . . 1 1 . 3 2 Damage Taken 4758 | . 56 108 280 . 1568 2746 Core 1833 | . . 11 113 . 544 1165 Absorbed by Shields . | . . . . . . . Redirected to Shielding 22 | . . . . . 22 . Ignored by Resistances 21 | . . . . . . 21 Core Remaining (%) 65 | 100 . . . 50 45 . Volleys Fired 140 | 8 18 17 16 . 23 58 Largest 3 | 2 2 2 2 . 3 2 Hottest 145 | 60 60 60 63 . 90 145 Shots Fired 232 | 16 36 34 30 . 50 66 Gun 64 | 16 21 . . . 4 23 Cannon 152 | . 15 34 15 . 45 43 Launcher 16 | . . . 15 . 1 . Special . | . . . . . . . Kinetic 185 | 8 33 34 15 . 49 46 Thermal 31 | 8 3 . . . . 20 Explosive 16 | . . . 15 . 1 . Electromagnetic . | . . . . . . . Robot Hit Streak 10 | 6 10 6 6 . 5 7 Robot Miss Streak 5 | 3 1 3 3 . 5 4 Penetration Max . | . . . . . . . Secondary Targets . | . . . . . . . Shots Hit Robots 125 | 9 26 15 16 . 29 30 Core Hits 68 | 3 9 8 17 . 13 18 Critical Kills . | . . . . . . . Critical Parts Destroyed . | . . . . . . . Critical Strikes 6 | . . 1 1 . 2 2 Blast 6 | . . 1 1 . 2 2 Melee Attacks . | . . . . . . . Impact . | . . . . . . . Slashing . | . . . . . . . Piercing . | . . . . . . . Sneak Attacks . | . . . . . . . Combat Hostiles . | . . . . . . . Follow-up Attacks . | . . . . . . . Damage Inflicted 3581 | 104 341 348 1175 . 575 1038 Guns 515 | 104 195 . . . 41 175 Cannons 1780 | . 146 348 82 . 363 841 Explosions 1264 | . . . 1093 . 171 . Melee . | . . . . . . . Ramming 22 | . . . . . . 22 Kinetic 1883 | 70 306 348 82 . 404 673 Thermal 412 | 34 35 . . . . 343 Explosive 1264 | . . . 1093 . 171 . Electromagnetic . | . . . . . . . Impact . | . . . . . . . Slashing . | . . . . . . . Piercing . | . . . . . . . Highest Corruption . | . . . . . . . Average Corruption . | . . . . . . . Corruption Purged . | . . . . . . . Corruption Blocked . | . . . . . . . Overload Shots . | . . . . . . . Overflow Damage 69 | . . . . . . 69 Projectiles 69 | . . . . . . 69 Explosions . | . . . . . . . Melee . | . . . . . . . Knockbacks 17 | . 2 5 . . 5 5 Impact 1 | . . . . . . 1 Kinetic 15 | . 2 4 . . 5 4 Secondary 1 | . . 1 . . . . Self-Inflicted Damage 154 | . . . 118 . 27 9 Shots 4 | . . . 3 . 1 . Rammed 11 | . . . . . . 11 Targets Rammed 11 | . . . . . . 11 Kicked . | . . . . . . . Crushed . | . . . . . . . Highest Temperature 389 | . 6 46 . . 21 389 Average Temperature 95 | . 4 15 . . 9 167 Received Heat Transfer 540 | . 30 78 33 . 225 174 Effects 3 | . . . . . . 3 Shutdowns 1 | . . . . . . 1 Energy Bleed 1 | . . . . . . 1 Interference 1 | . . . . . . 1 Siege Activations . | . . . . . . . Martial Activations . | . . . . . . . Shielding Activations . | . . . . . . . Robots Disrupted . | . . . . . . . Combat Hostiles . | . . . . . . . Robots Corrupted . | . . . . . . . Combat Hostiles . | . . . . . . . Parts Fried . | . . . . . . . Impact Corruptions . | . . . . . . . Robots Melted . | . . . . . . . Combat Hostiles . | . . . . . . . Parts Melted . | . . . . . . . Heat Transferred 520 | 75 75 . . . . 370 Parts Sabotaged . | . . . . . . . Parts Stolen . | . . . . . . . Parts Stripped . | . . . . . . . Power Chain Reactions . | . . . . . . . Alert | -11 -10 -10 -10 -7 -5 -4 ------- Run | Yrd Mat Min Sub Scr Fac Fac Maximum Alert Level 1 | . . . . . . 1 Low Security (%) 95 | 100 100 100 . . 100 72 Level 1 4 | . . . . . . 27 Level 2 . | . . . . . . . Level 3 . | . . . . . . . Level 4 . | . . . . . . . Level 5 . | . . . . . . . High Security . | . . . . . . . Max Security . | . . . . . . . Peak Influence 317 | 5 51 97 . . 30 317 Initial . | . . . . . . . Average 35 | . 5 33 . . 1 143 Influence Increases 996 | 10 88 245 . . 67 586 Destroy 0b10 Robot/C 440 | . 40 160 . . 40 200 Destroy 0b10 Robot/NC 65 | 10 20 15 . . 5 15 Destroy Leader 64 | . 14 20 . . 10 20 Allied During Kill 5 | . . 5 . . . . Successful Hack 12 | . 12 . . . . . Disable Machine 15 | . . . . . . 15 Destroy Structure 50 | . 2 . . . 12 36 Partial Spotted 15 | . . . . . . 15 Lose Combat Pursuer 330 | . . 45 . . . 285 Influence Decreases 716 | 10 88 180 65 . 67 306 Entered New Map 34 | . . . 34 . . . Time Decay 533 | 10 88 170 31 . 48 186 Lost Part 149 | . . 10 . . 19 120 Squads Dispatched 9 | . . . . . 2 7 Investigation 2 | . . . . . . 2 Extermination . | . . . . . . . Reinforcement 6 | . . . . . 2 4 Assault . | . . . . . . . Garrison 1 | . . . . . . 1 Intercept . | . . . . . . . Searches Triggered . | . . . . . . . Construction Impeded 1 | . . . . . . 1 Haulers Reinforced 2 | . . . . . 1 1 Active Scanning Responses . | . . . . . . . Cargo Convoy Interrupts . | . . . . . . . Stealth | -11 -10 -10 -10 -7 -5 -4 --------- Run | Yrd Mat Min Sub Scr Fac Fac Distress Signals 1 | . . . . . . 1 Communications Jammed . | . . . . . . . Distress Signals . | . . . . . . . Times Spotted 71 | . 5 9 5 . 8 44 Peak Tracking Total 10 | . 2 2 2 . 5 10 Tactical Retreats 9 | . . 3 . . . 6 Traps | -11 -10 -10 -10 -7 -5 -4 ------- Run | Yrd Mat Min Sub Scr Fac Fac Traps Triggered 1 | . . . . . . 1 Indirectly . | . . . . . . . Trap Hack Attempts . | . . . . . . . Triggered . | . . . . . . . Disarmed . | . . . . . . . Reprogrammed . | . . . . . . . Reused . | . . . . . . . Traps Extracted . | . . . . . . . Installed . | . . . . . . . Triggered . | . . . . . . . Machines | -11 -10 -10 -10 -7 -5 -4 ---------- Run | Yrd Mat Min Sub Scr Fac Fac Machines Disabled 1 | . . . . . . 1 Max in Single Turn 1 | . . . . . . 1 Machines Repaired . | . . . . . . . Machines Dismantled . | . . . . . . . Machines Sabotaged . | . . . . . . . Overloaded Fab Kills . | . . . . . . . Hacking | -11 -10 -10 -10 -7 -5 -4 --------- Run | Yrd Mat Min Sub Scr Fac Fac Machines Accessed 7 | . 1 . . 4 . 2 Terminals 3 | . 1 . . . . 2 Fabricators . | . . . . . . . Repair Stations . | . . . . . . . Recycling Units . | . . . . . . . Scanalyzers . | . . . . . . . Garrison Access . | . . . . . . . Total Hacks 34 | . 3 . . 26 . 5 Successful 28 | . 2 . . 26 . . Failed 6 | . 1 . . . . 5 Catastrophic 1 | . . . . . . 1 Database Lockouts . | . . . . . . . Manual . | . . . . . . . Terminals 8 | . 3 . . . . 5 Fabricators . | . . . . . . . Repair Stations . | . . . . . . . Recycling Units . | . . . . . . . Scanalyzers . | . . . . . . . Garrison Access . | . . . . . . . Terminal Hacks 28 | . 2 . . 26 . . Record 25 | . . . . 25 . . Hauler Manifests 1 | . 1 . . . . . Registered Components 1 | . 1 . . . . . Proto ID Catalog 1 | . . . . 1 . . Fabricator Hacks . | . . . . . . . Repair Station Hacks . | . . . . . . . Recycling Unit Hacks . | . . . . . . . Scanalyzer . | . . . . . . . Garrison Access Hacks . | . . . . . . . Unauthorized Hacks . | . . . . . . . Terminals . | . . . . . . . Fabricators . | . . . . . . . Repair Stations . | . . . . . . . Recycling Units . | . . . . . . . Scanalyzers . | . . . . . . . Garrison Access . | . . . . . . . Data Cores Recovered 1 | . 1 . . . . . Used . | . . . . . . . Hacking Detections 2 | . 1 . . . . 1 Full Trace Events 1 | . . . . . . 1 Feedback Events . | . . . . . . . Feedback Blocked . | . . . . . . . Robot Schematics Acquired . | . . . . . . . Robots Built . | . . . . . . . Authchips . | . . . . . . . Time . | . . . . . . . Total Robot Build Rating . | . . . . . . . Part Schematics Acquired . | . . . . . . . Parts Built . | . . . . . . . Authchips . | . . . . . . . Time . | . . . . . . . Total Part Build Rating . | . . . . . . . Part Studies Acquired . | . . . . . . . Parts Repaired . | . . . . . . . Time . | . . . . . . . Parts Recycled . | . . . . . . . Recycled Matter . | . . . . . . . Retrieved Matter . | . . . . . . . Retrieved Components . | . . . . . . . Parts Scanalyzed . | . . . . . . . Part Schematics Acquired . | . . . . . . . Parts Damaged . | . . . . . . . Bothacking | -11 -10 -10 -10 -7 -5 -4 ------------ Run | Yrd Mat Min Sub Scr Fac Fac Used RIF Installer . | . . . . . . . Robots Hacked . | . . . . . . . Non-combat . | . . . . . . . Combat . | . . . . . . . Robot Hacks Applied . | . . . . . . . Relay Couplers Released . | . . . . . . . Fabnet Peak Effective % . | . . . . . . . Robots Rewired . | . . . . . . . Allies Hacked . | . . . . . . . Hacks Repelled . | . . . . . . . Allies | -11 -10 -10 -10 -7 -5 -4 -------- Run | Yrd Mat Min Sub Scr Fac Fac Total Allies 1 | . . 1 . . . . Largest Group 1 | . . 1 . . . . Highest-Rated Group 31 | . . 31 . . . . Highest-Rated Ally 31 | . . 31 . . . . Initial UFD Resources 41 | . . . . . 39 41 Total Orders . | . . . . . . . Ally Attacks 16 | . . 16 . . . . Total Damage 272 | . . 272 . . . . Kills 3 | . . 3 . . . . Allies Corrupted . | . . . . . . . Allies Melted . | . . . . . . . Intel | -11 -10 -10 -10 -7 -5 -4 ------- Run | Yrd Mat Min Sub Scr Fac Fac Active Infowar (turns) 3706 | 50 597 582 657 1253 567 . Seismic 3706 | 50 597 582 657 1253 567 . Robot Analysis Total . | . . . . . . . Derelict Logs Recovered 1 | . . 1 . . . . Drone Launches . | . . . . . . . Drone Recoveries . | . . . . . . . Exploration | -11 -10 -10 -10 -7 -5 -4 ------------- Run | Yrd Mat Min Sub Scr Fac Fac Turns Passed 4286 | 142 597 582 657 1253 632 423 Spaces Moved 2094 | 69 355 262 253 519 188 448 Core 227 | 13 . . . . 174 40 Treads 269 | 56 213 . . . . . Legs . | . . . . . . . Wheels . | . . . . . . . Hover 1421 | . 142 262 253 519 14 231 Flight 177 | . . . . . . 177 Fastest Speed 37 | 50 116 116 240 240 50 37 Average Speed 172 | 154 147 127 240 240 292 56 Slowest Speed 400 | 160 260 240 240 240 400 250 Overloaded Moves . | . . . . . . . Propulsion Burnouts . | . . . . . . . Robots Hopped 3 | . . . . . . 3 Potential Cave-ins . | . . . . . . . Cave-ins Triggered . | . . . . . . . Exploration Rate (%) 31 | 3 52 66 21 55 5 15 Regions Visited 6 Branch Regions 3 Pre-discovered Areas . | . . . . . . . Known Exits Taken . | . . . . . . . Unknown Exits Taken 6 | 1 1 1 1 1 1 . Scrap Searched 3 | . . 1 . 2 . . Spaces Dug . | . . . . . . . Terrain Destroyed 131 | . . . 109 . 4 18 Melee . | . . . . . . . Projectile 18 | . . . . . . 18 AOE 113 | . . . 109 . 4 . Terrain Rammed . | . . . . . . . Walls Destroyed . | . . . . . . . Machines Disabled . | . . . . . . . Actions | -11 -10 -10 -10 -7 -5 -4 --------- Run | Yrd Mat Min Sub Scr Fac Fac Total 2525 | 85 392 476 273 528 228 543 Wait 221 | . 2 194 1 9 4 11 Move 2082 | 68 354 261 252 518 187 442 Hop 3 | . . . . . . 3 Pick Up 18 | 2 9 2 1 . 3 1 Fast Attach 18 | 7 2 . . . . 9 Attach 14 | . . . . . 8 6 Detach 2 | . . . . . 1 1 Swap 5 | . 2 1 2 . . . Drop 11 | . 5 1 1 1 2 1 Fire 140 | 8 18 17 16 . 23 58 Melee . | . . . . . . . Ram 11 | . . . . . . 11 Kick . | . . . . . . . Crush . | . . . . . . . Escape Stasis . | . . . . . . . Rewire . | . . . . . . . Trap . | . . . . . . . Miscellaneous . | . . . . . . . Route ------- -11/Scrapyard -10/Materials (discovered 2 exits: [*Mat] / [*Min]) -10/Mines (discovered 2 exits: [*Mat] / [*Sub]) -10/Subcaves -7/Scraptown -5/Factory -4/Factory History --------- Turn | Location | Event 20 | -11/Scrapyard | Discovered new exit (range 16) 143 | -11/Scrapyard | Entered Materials 240 | -10/Materials | Discovered new exit (range 16) 315 | -10/Materials | Build established: Mutant 563 | -10/Materials | Discovered new exit (range 7) 740 | -10/Materials | Entered Mines 772 | -10/Mines | Excavation squad dispatched 772 | -10/Mines | A large section of the Mines collapsed 977 | -10/Mines | Learned Materials terminal intel 988 | -10/Mines | Received a Mining Laser from a helpful Derelict 1116 | -10/Mines | Discovered new exit (range 7) 1164 | -10/Mines | Received a Rocket Launcher from a helpful Derelict 1308 | -10/Mines | Discovered new exit (range 4) 1322 | -10/Mines | Entered Subcaves 1323 | -10/Subcaves | Approached by a straggling Scientist 1689 | -10/Subcaves | Ambushed by angry Subdweller bent on revenge 1902 | -10/Subcaves | Ambushed by Subdweller buried in earth 1942 | -10/Subcaves | Scientist uncovered a shortcut to Scraptown 1979 | -10/Subcaves | Entered Scraptown 2604 | -7/Scraptown | Visited UFD Registry 2604 | -7/Scraptown | Registered with UFD as "Thundermod" 2736 | -7/Scraptown | Visited Curators Association 2784 | -7/Scraptown | Visited Chapter 10 2846 | -7/Scraptown | Visited Science Guys 2949 | -7/Scraptown | Visited Scrap Suit Storage 3055 | -7/Scraptown | Met Optimus 3055 | -7/Scraptown | Accepted into 0bPrime 3151 | -7/Scraptown | Visited Derelict Rescue Squad 3223 | -7/Scraptown | Discovered new exit (range 3) 3232 | -7/Scraptown | Entered Factory 3232 | -5/Factory | Evolved 10 slots: Power x1, Propulsion x6, Utility x2, Weapon x1 3331 | -5/Factory | Lost 3 parts (1p1n1w) 3478 | -5/Factory | Discovered new exit (range 5) 3840 | -5/Factory | Core integrity fell below 50% 3864 | -5/Factory | Entered another Factory area 3864 | -4/Factory | Evolved 2 slots: Propulsion x1, Weapon x1 3866 | -4/Factory | Lost 8 parts (1p1u6w) 4021 | -4/Factory | Garrison activated, responded to threat 4139 | -4/Factory | Core integrity fell below 50% 4148 | -4/Factory | Lost 3 parts (1p1u1w) 4241 | -4/Factory | Core integrity fell below 20% 4287 | -4/Factory | Destroyed by G-67 Veteran with Field Laser Last Messages --------------- 04277_ Focal Shield broken. 04277_ Destabilizing: Short circuit. 04279_ Slammed into S-27 Virus. 04279_ Hardcell Cannon broken. 04279_ Destabilizing: Short circuit. 04280_ Slug penetrates Wall. 04280_ Broken Hardcell Cannon destroyed. 04282_ Slammed into S-27 Virus. 04282_ Destabilizing: Core damaged (-11). 04283_ Slug penetrates Wall. 04284_ Penetrated by Slug. 04284_ Slug penetrates Wall. 04285_ Slammed into A-15 Conveyor. 04285_ A-15 Conveyor calls for reinforcements. 04285_ ALERT: Hostile activity reported, dispatching reinforcements to area. 04285_ Broken Focal Shield destroyed. 04286_ Slammed into G-67 Veteran. 04286_ G-67 Veteran knocked back. 04287_ Slammed into G-67 Veteran. Map ----- +----------------------------------------------------+ | ???????????# #????? # #????????????????????? | | ???????????# #?????? # #????????????????????? | | ???????????# #???????# #??##????????????????? | | ???????????# #???????# #?""#??? #??????????? | | ???????????# #???????# #"Y"# #??????????? | | ???????????# #???????# #??????????? | | ???????#???# ######### ""?????????? | | ???????# ### ## + ! / ""?????????? | | ??????## + # "????????? | | ??????# ## # "F?????????? | | ??????# ## # """ """ "??????????? | | ??????# ## # """ """ ? #??????????? | | ????### ## # """ """???????????????? | | ??? ##+###### ???????????????? | | ??? #?#### ????????????????? | | ?? R #?#""# ###??????????????????? | | ?## ###T # #????????????????????? | | ??# +????????????????????? | | ??# #????????????????????? | | ??# g #????????????????????? | | ??? #????????????????????? | | ???? #????????????????????? | | ???? #????????????????????? | | ???? g #????????????????????? | | ???? ! u hA #????????????????????? | | ???? ##+####### hs @g #????????????????????? | | ?????? ?????????####/##### + ?????????????? | | ?????? ??????????# ! # ######???????????????? | | ?????????????????# #??????????????????????? | | ?????????????????# %! """"#??????????????????????? | | ?????????????????# """"#??????????????????????? | | ?????????????????# """"#??????????????????????? | | ?????????????????# """"#??????????????????????? | | ?????????????????# """"#??????????????????????? | | ?????????????????# """"#??????????????????????? | | ?????????????????# #??????????????????????? | | ?????????????????##########??????????????????????? | | ?????????????????????????????????????????????????? | | ?????????????????????????????????????????????????? | | ?????????????????????????????????????????????????? | | ?????????????????????????????????????????????????? | | ?????????????????????????????????????????????????? | | ?????????????????????????????????????????????????? | | ?????????????????????????????????????????????????? | | ?????????????????????????????????????????????????? | | ?????????????????????????????????????????????????? | | ?????????????????????????????????????????????????? | | ?????????????????????????????????????????????????? | | ?????????????????????????????????????????????????? | | ?????????????????????????????????????????????????? | +----------------------------------------------------+ Best States ------------- Heat Dissipation 43 Energy Generation 21 Energy Capacity 400 Matter Stores 300 Matter Capacity 300 Sight Range 16 Terrain Scan Density 10 Power Shielding 33 Evasion (%) 62 Recoil Reduction 2 Item Schematics ----------------- None Robot Schematics ------------------ None Fabricated ------------ Nothing Repaired ---------- Nothing Studied --------- None Alien Tech Used ----------------- None Achievements -------------- None Challenges ------------ None Game ------ Seed TerrorAssaultTurbovents Manual? 0 Play Time 00:23:45 Cumulative 69.0 hours Start 2026.07.01 @ 14:00:12 End 2026.07.01 @ 15:10:25 Sessions 1 Manual Loads 0 Difficulty Rogue Special Mode None Game No. 144 Rogue 144 Adventurer 0 Explorer 0 Win Type - Total 0 Types 0/0/0/0/0/0/0/0/0/0 Lore% 31 Gallery% 30 Achievement% 26 Wizard Run 0 Options --------- Layout 0 ASCII 0 Keyboard 0 Movement Mouse Keybinds 0 Fullscreen 2 Font 24/Smallcaps Map View 76x50 Zoom Use 0% Tactical HUD 1 Map Filters NONE Filters NONE Steam 1 RUN: ad1f1686-9aa1-42fd-b67c-ffb4bc05d8ff